{"text_format":"3","workbook":"xlsx","n_sheets":1,"sheets":["Gastos iniciales"],"not_rendered":{"defined_names":1},"read":"whole","date_system":"1900"}

{"sheet":"Gastos iniciales","index":0,"n_rows":120,"n_cols":4,"rows_kept":120,"merged":[[1,1,1,3],[60,1,60,3],[82,1,82,3]]}
["GASTOS INICIALES",null,null,"NOMBRE DE LA EMPRESA"]
[null,"NOTA ANTES DE USAR ESTA HOJA DE CÁLCULO\nPrácticamente, todos los que empiezan un negocio tienen costos subestimados y, en consecuencia, se enfrentan al peligro de disponer de reservas de capital inadecuadas. La clave para evitar esta trampa es adoptar un método estricto de investigación y planeamiento. Nuestra plantilla Gastos iniciales le guiará en el proceso.\n\nEMPEZAR POR EL CÁLCULO DE LOS GASTOS\n¿Qué le costará poner en marcha su negocio?  La clave para la precisión es prestar atención a cada detalle. Por cada categoría de gastos, prepare una lista de todo lo que tendrá que comprar. Aquí se incluirán activos tangibles (como equipo e inventario) y servicios (como reformas y seguros). Después, determine dónde podría comprar estos bienes o servicios. Busque más de un proveedor (es decir, compare varias tiendas). No analice solo el precio; las condiciones de pago, la entrega, la confiabilidad y el servicio también son importantes. "]
[]
[null,"GASTOS INICIALES"]
[null,"EDIFICIOS/INMUEBLES"," ","CANTIDAD"]
[null,"Compra",null,{"v":0,"d":"0.00 €"}]
[null,"Construcción",null,{"v":0,"d":"0.00 €"}]
[null,"Reformas",null,{"v":0,"d":"0.00 €"}]
[null,"Otros",null,{"v":0,"d":"0.00 €"}]
[null,"Total",null,{"$f":"SUBTOTAL(109,Inmobiliaria[CANTIDAD])","v":{"v":0,"d":"0.00 €"}}]
[]
[null,"MEJORAS EN ALQUILERES"," ","CANTIDAD"]
[null,"Elemento 1",null,{"v":0,"d":"0.00 €"}]
[null,"Elemento 2",null,{"v":0,"d":"0.00 €"}]
[null,"Elemento 3",null,{"v":0,"d":"0.00 €"}]
[null,"Elemento 4",null,{"v":0,"d":"0.00 €"}]
[null,"Total",null,{"$f":"SUBTOTAL(109,Mejoras[CANTIDAD])","v":{"v":0,"d":"0.00 €"}}]
[]
[null,"LISTA DE EQUIPO DE CAPITAL"," ","CANTIDAD"]
[null,"Mobiliario",null,{"v":0,"d":"0.00 €"}]
[null,"Equipamiento",null,{"v":0,"d":"0.00 €"}]
[null,"Accesorios",null,{"v":0,"d":"0.00 €"}]
[null,"Maquinaria",null,{"v":0,"d":"0.00 €"}]
[null,"Otros",null,{"v":0,"d":"0.00 €"}]
[null,"Total",null,{"$f":"SUBTOTAL(109,Capital[CANTIDAD])","v":{"v":0,"d":"0.00 €"}}]
[]
[null,"GASTOS ADMINISTRATIVOS Y DE UBICACIÓN"," ","CANTIDAD"]
[null,"Alquiler",null,{"v":0,"d":"0.00 €"}]
[null,"Ingresos para servicios públicos",null,{"v":0,"d":"0.00 €"}]
[null,"Honorarios jurídicos y de contabilidad",null,{"v":0,"d":"0.00 €"}]
[null,"Seguro prepagado",null,{"v":0,"d":"0.00 €"}]
[null,"Salarios antes de la apertura ",null,{"v":0,"d":"0.00 €"}]
[null,"Otros",null,{"v":0,"d":"0.00 €"}]
[null,"Total",null,{"$f":"SUBTOTAL(109,GastosAdministrativos[CANTIDAD])","v":{"v":0,"d":"0.00 €"}}]
[]
[null,"INVENTARIO INICIAL"," ","CANTIDAD"]
[null,"Categoría 1",null,{"v":0,"d":"0.00 €"}]
[null,"Categoría 2",null,{"v":0,"d":"0.00 €"}]
[null,"Categoría 3",null,{"v":0,"d":"0.00 €"}]
[null,"Categoría 4",null,{"v":0,"d":"0.00 €"}]
[null,"Categoría 5",null,{"v":0,"d":"0.00 €"}]
[null,"Total",null,{"$f":"SUBTOTAL(109,InventarioInicial[CANTIDAD])","v":{"v":0,"d":"0.00 €"}}]
[]
[null,"GASTOS PROMOCIONALES Y DE PUBLICIDAD"," ","CANTIDAD"]
[null,"Publicidad",null,{"v":0,"d":"0.00 €"}]
[null,"Señalización",null,{"v":0,"d":"0.00 €"}]
[null,"Impresión",null,{"v":0,"d":"0.00 €"}]
[null,"Viajes y entretenimiento",null,{"v":0,"d":"0.00 €"}]
[null,"Otras categorías",null,{"v":0,"d":"0.00 €"}]
[null,"Total",null,{"$f":"SUBTOTAL(109,GastosPromocionales[CANTIDAD])","v":{"v":0,"d":"0.00 €"}}]
[]
[null,"OTROS GASTOS"," ","CANTIDAD"]
[null,"Otro gasto 1",null,{"v":0,"d":"0.00 €"}]
[null,"Otro gasto 2",null,{"v":0,"d":"0.00 €"}]
[null,"Total",null,{"$f":"SUBTOTAL(109,OtrosGastos[CANTIDAD])","v":{"v":0,"d":"0.00 €"}}]
[]
[null,"Reserva para contingencias",null,{"v":0,"d":"0.00 €"}]
[]
[null,"Capital circulante ",null,{"v":0,"d":"0.00 €"}]
[]
[null,"AGREGAR UNA RESERVA PARA CONTINGENCIAS\nAsegúrese de explicar en su narrativa cómo decidió el importe especificado en esta reserva. \n\nDETERMINAR EL FLUJO DE EFECTIVO\nNo se puede abrir una cuenta bancaria sin saldo. Necesita un colchón para cubrir gastos mientras se pone en marcha el negocio. Le recomendamos tener una proyección de flujo de caja de 12 meses. Aquí es donde trabajará en el cálculo de sus necesidades de capital circulante. De momento, deje esta línea en blanco o realice un cálculo aproximado. Después de completar el flujo de efectivo, puede volver y especificar los importes que analizó detenidamente.\n\nESPECIFICAR LAS FUENTES DE CAPITAL\nDespués de calcular el capital que necesitará para empezar, tiene que centrarse en la parte superior de esta hoja de cálculo. Escriba los importes que pondrá por su cuenta, cuánto aportarán los socios o inversores y cuánto se obtendrá mediante préstamos."]
[]
[null,"FUENTES DE CAPITAL"]
[null,"INVERSIÓN DE LOS PROPIETARIOS (NOMBRE Y % DE PROPIEDAD)"," ","CANTIDAD"]
[null,"Nombre y porcentaje de propiedad",null,{"v":0,"d":"0.00 €"}]
[null,"Otro inversor",null,{"v":0,"d":"0.00 €"}]
[null,"Otro inversor",null,{"v":0,"d":"0.00 €"}]
[null,"Otro inversor",null,{"v":0,"d":"0.00 €"}]
[null,"Total",null,{"$f":"SUBTOTAL(109,InversionesDePropietarios[CANTIDAD])","v":{"v":0,"d":"0.00 €"}}]
[]
[null,"PRÉSTAMOS BANCARIOS"," ","CANTIDAD"]
[null,"Banco 1",null,{"v":0,"d":"0.00 €"}]
[null,"Banco 2",null,{"v":0,"d":"0.00 €"}]
[null,"Banco 3",null,{"v":0,"d":"0.00 €"}]
[null,"Banco 4",null,{"v":0,"d":"0.00 €"}]
[null,"Total",null,{"$f":"SUBTOTAL(109,PréstamosBancarios[CANTIDAD])","v":{"v":0,"d":"0.00 €"}}]
[]
[null,"OTROS PRÉSTAMOS"," ","CANTIDAD"]
[null,"Origen 1",null,{"v":0,"d":"0.00 €"}]
[null,"Origen 2",null,{"v":0,"d":"0.00 €"}]
[null,"Total",null,{"$f":"SUBTOTAL(109,OtrosPréstamos[CANTIDAD])","v":{"v":0,"d":"0.00 €"}}]
[]
[null,"PROPORCIONAR PRUEBA DE AVALES\nSi va a usar este plan para solicitar un préstamo bancario, utilice la sección de la parte inferior para mostrar los activos que se ofrecen como aval para garantizar el préstamo y calcule el valor de estos elementos. Prepárese para ofrecer alguna prueba de cálculo de los valores de los avales."]
[]
[null,"ESTADO DE CUENTAS"]
[null,"FUENTE DE CAPITAL"," ","TOTALES"]
[null,"Propietarios y otras inversiones",null,{"$f":"InversionesDePropietarios[[#Totals],[CANTIDAD]]","v":{"v":0,"d":"0.00 €"}}]
[null,"Préstamos bancarios",null,{"$f":"PréstamosBancarios[[#Totals],[CANTIDAD]]","v":{"v":0,"d":"0.00 €"}}]
[null,"Otros préstamos",null,{"$f":"OtrosPréstamos[[#Totals],[CANTIDAD]]","v":{"v":0,"d":"0.00 €"}}]
[null,"Total",null,{"$f":"SUBTOTAL(109,FuentesDeCapital[TOTALES])","v":{"v":0,"d":"0.00 €"}}]
[]
[null,"GASTOS INICIALES"," ","TOTALES"]
[null,"Edificios/inmuebles",null,{"$f":"Inmobiliaria[[#Totals],[CANTIDAD]]","v":{"v":0,"d":"0.00 €"}}]
[null,"Mejoras en alquileres",null,{"$f":"Mejoras[[#Totals],[CANTIDAD]]","v":{"v":0,"d":"0.00 €"}}]
[null,"Equipo de capital",null,{"$f":"Capital[[#Totals],[CANTIDAD]]","v":{"v":0,"d":"0.00 €"}}]
[null,"Gastos de administración y ubicación",null,{"$f":"GastosAdministrativos[[#Totals],[CANTIDAD]]","v":{"v":0,"d":"0.00 €"}}]
[null,"Inventario inicial",null,{"$f":"InventarioInicial[[#Totals],[CANTIDAD]]","v":{"v":0,"d":"0.00 €"}}]
[null,"Gastos promocionales y de publicidad",null,{"$f":"GastosPromocionales[[#Totals],[CANTIDAD]]","v":{"v":0,"d":"0.00 €"}}]
[null,"Otros gastos",null,{"$f":"OtrosGastos[[#Totals],[CANTIDAD]]","v":{"v":0,"d":"0.00 €"}}]
[null,"Fondo para imprevistos",null,{"$f":"SUM('Gastos iniciales'!$C$57)","v":{"v":0,"d":"0.00 €"}}]
[null,"Capital circulante",null,{"$f":"SUM('Gastos iniciales'!$C$59)","v":{"v":0,"d":"0.00 €"}}]
[null,"Total",null,{"$f":"SUBTOTAL(109,GastosIniciales[TOTALES])","v":{"v":0,"d":"0.00 €"}}]
[]
[null,"SEGURIDAD Y AVAL PARA PROPUESTA DE PRÉSTAMO"]
[null,"AVAL PARA PRÉSTAMOS","DESCRIPCIÓN","VALOR"]
[null,"Inmuebles",null,{"v":0,"d":"0.00 €"}]
[null,"Otros avales",null,{"v":0,"d":"0.00 €"}]
[null,"Otros avales",null,{"v":0,"d":"0.00 €"}]
[null,"Otros avales",null,{"v":0,"d":"0.00 €"}]
[null,"Total",null,{"$f":"SUBTOTAL(109,Aval[VALOR])","v":{"v":0,"d":"0.00 €"}}]
[]
[null,"PROPIETARIOS"," ","  "]
[null,"SU NOMBRE AQUÍ"]
[null,"Otro propietario"]
[null,"Otro propietario"]
[]
[null,"AVALISTAS DE PRÉSTAMO (DISTINTOS DE LOS PROPIETARIOS)"," ","  "]
[null,"Avalista de préstamo 1"]
[null,"Avalista de préstamo 2"]
[null,"Avalista de préstamo 3"]